bitfinex/quotes_BTCUSD_20241226
["timestamp","ask_amount","ask_price","bid_price","bid_amount"]
[1735173981624,0.36699762,99389.0,99388.0,4.8769]
[1735173982236,0.44227893,99389.0,99388.0,4.5426]
[1735173982456,0.44227893,99389.0,99388.0,4.5149]
[1735173982457,0.41457893,99389.0,99388.0,4.5149]
[1735173982656,0.41457893,99389.0,99388.0,4.5129]
[1735173983075,0.42000983,99389.0,99388.0,4.5129]
[1735173983257,0.44059736,99389.0,99388.0,4.5129]
[1735173983651,0.40938515,99389.0,99388.0,4.5129]
[1735173984046,0.41238515,99389.0,99388.0,4.5139]
[1735173985077,0.4435886,99389.0,99388.0,4.5139]
[1735173985282,0.4435886,99389.0,99388.0,4.453531]
[1735173985283,0.54756853,99389.0,99388.0,4.453531]
[1735173985899,0.54456853,99389.0,99388.0,4.452531]
[1735173986107,0.54058221,99389.0,99388.0,4.33276566]
[1735173986333,0.51238515,99389.0,99388.0,4.31325205]
[1735173986532,0.54457044,99389.0,99388.0,4.27300605]
[1735173986742,0.54757044,99389.0,99388.0,4.23376005]
[1735173986853,0.73865594,99389.0,99388.0,4.21263705]
[1735173987088,0.73865594,99389.0,99388.0,4.21163705]
[1735173987293,0.74565594,99389.0,99388.0,4.21363705]
[1735173987493,0.84364226,99389.0,99388.0,4.11202205]
[1735173987691,0.83964226,99389.0,99388.0,4.11102205]
[1735173987935,0.84264226,99389.0,99388.0,4.11302205]
[1735173988134,0.84664226,99389.0,99388.0,3.98315716]
[1735173988740,1.02730284,99389.0,99388.0,3.96303416]
[1735173988915,1.02730284,99389.0,99388.0,3.94291116]
[1735173989118,1.02730284,99389.0,99388.0,3.90266516]
[1735173989739,1.10231755,99389.0,99388.0,3.84426803]
[1735173990102,1.13347508,99389.0,99388.0,3.78389903]
[1735173990301,1.10231755,99389.0,99388.0,3.78389903]
[1735173990505,1.10231755,99389.0,99388.0,3.76377603]
[1735173990704,1.10231755,99389.0,99388.0,3.74365303]
[1735173990907,1.10231755,99389.0,99388.0,3.72353003]
[1735173991109,1.10231755,99389.0,99388.0,3.70340703]
[1735173991494,1.10231755,99389.0,99388.0,3.64432103]
[1735173991647,1.32671091,99389.0,99388.0,3.60407503]
[1735173992063,1.32671091,99389.0,99388.0,3.35052903]
[1735173992284,1.32671091,99389.0,99388.0,3.32643907]
[1735173992528,1.32671091,99389.0,99388.0,3.28931607]
[1735173992780,1.35784217,99389.0,99388.0,3.22894707]
[1735173993262,1.32671091,99389.0,99388.0,3.20882407]
[1735173993505,1.32671091,99389.0,99388.0,3.18870107]
[1735173993806,1.22272459,99389.0,99388.0,3.16857807]
[1735173994039,1.22272459,99389.0,99388.0,3.10820907]
[1735173994449,0.99833123,99389.0,99388.0,3.08808607]
[1735173994729,0.99833123,99389.0,99388.0,3.04784007]
[1735173995209,0.99833123,99389.0,99388.0,3.02771707]
[1735173995440,1.10231755,99389.0,99388.0,2.98747107]
[1735173995707,1.10231755,99389.0,99388.0,2.90697907]
[1735173996424,1.10231755,99389.0,99388.0,2.88685607]
[1735173996656,1.10231755,99389.0,99388.0,2.84661007]
[1735173996884,1.10231755,99389.0,99388.0,2.73583407]
[1735173997246,1.32653795,99389.0,99388.0,2.69683407]
[1735173997443,1.32653795,99389.0,99388.0,2.63646507]
[1735173997643,1.32653795,99389.0,99388.0,2.59621907]
[1735173997831,1.32653795,99389.0,99388.0,2.23100508]
[1735173998035,1.32653795,99389.0,99388.0,1.94782561]
[1735173998231,1.32653795,99389.0,99388.0,1.44613148]
[1735173998436,1.32653795,99389.0,99388.0,1.42600848]
[1735173999045,1.09531755,99389.0,99388.0,1.34351648]
[1735173999244,1.09931755,99389.0,99388.0,1.30451648]
[1735173999495,1.10831755,99389.0,99388.0,1.24514748]
[1735173999648,1.10831755,99389.0,99388.0,1.17990148]
[1735173999846,1.10431755,99389.0,99388.0,1.17890148]
[1735174000043,1.10831755,99389.0,99388.0,1.17990148]
[1735174000362,1.37282595,99389.0,99388.0,0.85747435]
[1735174001104,1.37282595,99389.0,99388.0,0.62902235]
[1735174001469,1.37282595,99389.0,99388.0,0.60889935]
[1735174001710,1.14860555,99389.0,99388.0,0.52840735]
[1735174002016,1.14860555,99389.0,99388.0,0.51127735]
[1735174002228,1.14860555,99389.0,99388.0,0.49756735]
[1735174002451,1.14860555,99389.0,99388.0,0.40771435]
[1735174003049,1.37282595,99389.0,99388.0,7.9e-07]
[1735174003257,1.40390796,99389.0,99388.0,7.9e-07]
[1735174003832,0.261046,99350.0,99332.0,0.0778]
[1735174004039,0.51503232,99350.0,99332.0,0.0778]
[1735174004459,0.52554375,99350.0,99332.0,0.0778]
[1735174005124,0.52554375,99350.0,99349.0,0.00069105]
[1735174005501,0.52854375,99350.0,99349.0,0.00069105]
[1735174005698,0.62966323,99350.0,99349.0,0.00069105]
[1735174005926,0.65266323,99350.0,99349.0,0.00069105]
[1735174006491,0.66066323,99350.0,99349.0,0.00069105]
[1735174006761,0.66066323,99350.0,99317.0,0.0001714]
[1735174006762,0.434098,99318.0,99317.0,0.0001714]
[1735174006997,0.53808432,99318.0,99317.0,0.00032735]
[1735174007425,0.61371252,99318.0,99317.0,0.00032735]
[1735174007711,0.63808432,99318.0,99317.0,0.00032735]
[1735174007954,0.434145,99289.0,99287.0,0.0489]
[1735174008204,0.53813132,99289.0,99288.0,0.00022336]
[1735174008458,0.53813132,99289.0,99288.0,0.07802336]
[1735174010234,0.53913132,99289.0,99288.0,0.07802336]
[1735174010721,0.54113132,99289.0,99288.0,0.07802336]
[1735174011469,0.53913132,99289.0,99288.0,0.07802336]
[1735174011947,0.53813132,99289.0,99288.0,0.07802336]
[1735174012197,0.55194747,99289.0,99288.0,0.07802336]
[1735174012442,0.54794747,99289.0,99288.0,0.07802336]
[1735174012889,0.55294747,99289.0,99288.0,0.07802336]
[1735174013116,0.54994747,99289.0,99288.0,0.07802336]
[1735174013373,0.55294747,99289.0,99288.0,0.07802336]
[1735174013837,0.10698632,99289.0,99288.0,0.07802336]
[1735174014105,0.10798632,99289.0,99288.0,0.07802336]
[1735174014386,0.00125901,99309.0,99289.0,0.207045]
[1735174014653,0.10524529,99308.0,99296.0,0.0786]
[1735174014926,0.10524529,99308.0,99297.0,0.0459]
[1735174015145,0.10524529,99308.0,99298.0,0.0786]
[1735174015361,0.00125897,99308.0,99307.0,0.0786]
[1735174015566,0.00125874,99326.0,99307.0,0.0786]
[1735174015772,0.10398632,99317.0,99307.0,0.0786]
[1735174015929,0.00125874,99316.0,99307.0,0.0786]
[1735174016134,0.10398632,99315.0,99307.0,0.0786]
[1735174016346,0.00125874,99314.0,99307.0,0.0786]
[1735174016550,0.10398632,99313.0,99307.0,0.0786]
[1735174016766,0.00125874,99312.0,99307.0,0.0786]
[1735174017020,0.10398632,99311.0,99307.0,0.0786]
[1735174017358,0.00125874,99310.0,99307.0,0.0786]
[1735174018842,0.10398632,99309.0,99307.0,0.0786]
[1735174019085,0.10524515,99309.0,99307.0,0.0786]
[1735174019327,0.00125883,99308.0,99307.0,0.0786]
[1735174019569,0.10524515,99308.0,99307.0,0.0786]
[1735174020853,0.25524521,99308.0,99307.0,0.0786]
[1735174021096,0.25398632,99308.0,99307.0,0.0786]
[1735174022788,0.25698632,99308.0,99307.0,0.0787714]
[1735174023285,0.25398632,99308.0,99307.0,0.0787714]
[1735174025053,0.25798632,99308.0,99307.0,0.0787714]
[1735174025277,0.25398632,99308.0,99307.0,0.0787714]
[1735174026134,0.25698632,99308.0,99307.0,0.0787714]
[1735174026587,0.25398632,99308.0,99307.0,0.0787714]
[1735174028642,0.28398632,99308.0,99307.0,0.0787714]
[1735174028821,0.47172754,99308.0,99307.0,0.0001714]
[1735174029036,0.46772754,99308.0,99307.0,0.0001714]
[1735174029458,0.46472754,99308.0,99307.0,0.0001714]
[1735174029664,0.261144,99290.0,99289.0,0.0605714]
[1735174029872,0.12698632,99290.0,99289.0,0.0605714]
[1735174030072,0.12824544,99290.0,99289.0,0.0605714]
[1735174030291,0.10398632,99290.0,99289.0,0.0605714]
[1735174031761,0.26513032,99290.0,99289.0,0.0605714]
[1735174031976,0.10398632,99290.0,99289.0,0.0605714]
[1735174032173,0.10498632,99290.0,99289.0,0.0625714]
[1735174034143,0.10624539,99290.0,99289.0,0.0625714]
[1735174036160,0.10624539,99290.0,99289.0,0.062743]
[1735174036360,0.10524539,99290.0,99289.0,0.060743]
[1735174036755,0.22824539,99290.0,99289.0,0.060743]
[1735174036959,0.22698632,99290.0,99289.0,0.0001716]
[1735174038109,0.23684976,99290.0,99289.0,0.0001716]
[1735174038511,0.38684976,99290.0,99289.0,0.0001716]
[1735174038746,0.38784976,99290.0,99289.0,0.0001716]
[1735174040107,0.38884976,99290.0,99289.0,0.0001716]
[1735174040400,0.38984976,99290.0,99289.0,0.0001716]
[1735174040825,0.38784976,99290.0,99289.0,0.0001716]
[1735174041355,0.10498632,99290.0,99289.0,0.0801716]
[1735174041577,0.001,99290.0,99289.0,0.1286716]
[1735174041778,0.08941372,99294.0,99291.0,0.08]
[1735174041999,0.08941372,99294.0,99292.0,0.0485]
[1735174042205,0.13412059,99296.0,99293.0,0.241139]
[1735174042417,0.1,99333.0,99293.0,0.241139]
[1735174042418,0.08967294,99318.0,99298.0,0.161131]
[1735174042557,0.08967294,99318.0,99307.0,0.241116]
[1735174043597,0.0010858,99308.0,99307.0,0.241116]
[1735174043801,0.0020858,99308.0,99307.0,0.241116]
[1735174044268,0.0010858,99308.0,99307.0,0.241116]
[1735174044466,0.0010858,99308.0,99307.0,0.243116]
[1735174045035,8.58e-05,99308.0,99307.0,0.243116]
[1735174045238,0.0010858,99308.0,99307.0,0.243116]
[1735174046491,0.0010858,99308.0,99307.0,0.082]
[1735174046707,0.10507212,99308.0,99307.0,0.002]
[1735174047325,0.10507212,99308.0,99296.0,0.1285]
[1735174047326,0.161116,99307.0,99296.0,0.1285]
[1735174047502,0.10524521,99306.0,99296.0,0.1285]
[1735174048355,0.161119,99305.0,99296.0,0.1285]
[1735174048566,0.10524526,99304.0,99296.0,0.1285]
[1735174050537,0.10524526,99304.0,99296.0,0.1295]
[1735174050963,0.10524526,99304.0,99296.0,0.081]
[1735174051173,0.10524526,99304.0,99302.0,0.161124]
[1735174051174,0.10398632,99304.0,99302.0,0.161124]
[1735174051384,8.58e-05,99308.0,99296.0,0.081]
[1735174051614,8.58e-05,99308.0,99307.0,0.161116]
[1735174052024,0.10407212,99308.0,99296.0,0.08]
[1735174052238,0.001,99304.0,99302.0,0.161124]
[1735174052444,0.001,99304.0,99302.0,0.163124]
[1735174052912,0.001,99304.0,99302.0,0.161124]
[1735174053119,8.58e-05,99308.0,99307.0,0.001]
[1735174053328,8.58e-05,99308.0,99307.0,0.162116]
[1735174053738,8.58e-05,99308.0,99307.0,0.161116]
[1735174053950,8.58e-05,99308.0,99304.0,0.161121]
[1735174054164,0.10398632,99307.0,99302.0,0.002]
[1735174054372,0.00125892,99306.0,99302.0,0.002]
[1735174054579,0.10398632,99305.0,99302.0,0.002]
[1735174054786,0.00125885,99304.0,99302.0,0.002]
[1735174054991,0.10524517,99303.0,99302.0,0.002]
[1735174055197,0.10524517,99303.0,99296.0,0.08]
[1735174055399,0.10524517,99303.0,99297.0,0.161132]
[1735174056228,8.58e-05,99308.0,99296.0,0.08]
[1735174056440,8.58e-05,99308.0,99307.0,0.293416]
[1735174058314,8.57e-05,99318.0,99317.0,0.1611]
[1735174059146,8.57e-05,99318.0,99317.0,0.2406]
[1735174060090,8.57e-05,99318.0,99317.0,0.2416]
[1735174061903,8.57e-05,99318.0,99317.0,0.25173878]
[1735174062669,8.57e-05,99318.0,99317.0,0.2416]
[1735174063078,0.10407202,99318.0,99317.0,0.001]
[1735174063704,0.10533083,99318.0,99317.0,0.001]
[1735174064268,0.10533083,99318.0,99298.0,0.161129]
[1735174064486,0.10524514,99317.0,99298.0,0.161129]
[1735174064881,0.10524514,99317.0,99298.0,0.322259]
[1735174065714,0.10524514,99317.0,99293.0,0.240638]
[1735174065715,0.15,99316.0,99293.0,0.240638]
[1735174065919,0.1052452,99315.0,99297.0,0.161132]
[1735174066125,0.1052452,99315.0,99293.0,0.240638]
[1735174066284,0.161113,99309.0,99298.0,0.002]
[1735174066640,0.1052452,99308.0,99298.0,0.002]
[1735174067635,0.161116,99307.0,99292.0,0.16114]
[1735174067845,0.1052452,99306.0,99292.0,0.16114]
[1735174068848,0.1052452,99306.0,99290.0,0.11734109]
[1735174069046,0.08981917,99330.0,99290.0,0.11734109]
[1735174069288,0.10398632,99317.0,99315.0,0.161103]
[1735174069497,0.10398632,99317.0,99300.0,0.11734109]
[1735174069700,0.00125869,99316.0,99300.0,0.11734109]
[1735174069873,0.10524501,99316.0,99300.0,0.11734109]
[1735174070071,0.10524501,99316.0,99311.0,0.161108]
[1735174070273,0.10524501,99316.0,99296.0,0.0011716]
[1735174070274,0.10398632,99315.0,99296.0,0.0011716]
[1735174070495,0.00125884,99314.0,99299.0,0.01996261]
[1735174070815,0.10398632,99314.0,99311.0,0.161108]
[1735174070938,0.00125869,99313.0,99303.0,0.161123]
[1735174071143,0.00125872,99312.0,99303.0,0.161123]
[1735174071815,0.10398632,99311.0,99301.0,0.0819]
[1735174071990,0.00125879,99310.0,99301.0,0.0819]
[1735174072172,0.10398632,99309.0,99302.0,0.161124]
[1735174072370,0.00134459,99308.0,99302.0,0.161124]
[1735174072579,0.10533091,99308.0,99302.0,0.161124]
[1735174074060,0.10533091,99308.0,99303.0,0.002]
[1735174074236,0.10633091,99308.0,99303.0,0.002]
[1735174074417,0.10633091,99308.0,99302.0,0.161124]
[1735174074626,0.10633091,99308.0,99302.0,0.164124]
[1735174074827,0.10633091,99308.0,99302.0,0.003]
[1735174075028,0.10533091,99308.0,99302.0,0.003]
[1735174075191,0.10633091,99308.0,99301.0,0.0819]
[1735174075393,0.10633091,99308.0,99303.0,0.003]
[1735174076558,0.10533091,99308.0,99303.0,0.003]
[1735174076762,0.10398632,99307.0,99303.0,0.003]
[1735174076985,0.10398632,99307.0,99296.0,0.0001716]
[1735174076986,0.00125886,99306.0,99296.0,0.0001716]
[1735174077135,0.10398632,99305.0,99302.0,0.003]
[1735174077330,0.00125887,99304.0,99302.0,0.003]
[1735174077529,0.10398632,99303.0,99302.0,0.003]
[1735174077723,0.10524519,99303.0,99296.0,0.0001716]
[1735174077924,0.00125888,99302.0,99296.0,0.0001716]
[1735174078126,0.10398632,99301.0,99296.0,0.0001716]
[1735174078323,0.023,99299.0,99296.0,0.0001716]
[1735174078529,0.161132,99297.0,99296.0,0.0001716]
[1735174078786,0.43937745,99297.0,99296.0,0.0001716]
[1735174079092,0.53811832,99297.0,99296.0,0.0001716]
[1735174080898,0.53811832,99297.0,99296.0,0.0011716]
[1735174081132,0.65220459,99297.0,99296.0,0.0011716]
[1735174081538,0.65220459,99297.0,99296.0,0.0001716]
[1735174081539,0.62301832,99297.0,99296.0,0.0001716]
[1735174081727,0.65418841,99297.0,99296.0,0.0001716]
[1735174081875,0.65518841,99297.0,99296.0,0.0001716]
[1735174082339,0.62301832,99297.0,99296.0,0.0001716]
[1735174082547,0.63332237,99297.0,99296.0,0.0001716]
[1735174082709,0.68146469,99297.0,99296.0,0.0001716]
[1735174082896,0.63432237,99297.0,99296.0,0.0001716]
[1735174083102,0.77387799,99297.0,99296.0,0.0001716]
[1735174083328,0.76887799,99297.0,99296.0,0.0001716]
[1735174083750,0.77587799,99297.0,99296.0,0.0001716]
[1735174083973,0.76587799,99297.0,99296.0,0.0001716]
[1735174084190,0.64032237,99297.0,99296.0,0.0001716]
[1735174084604,0.63632237,99297.0,99296.0,0.0001716]
[1735174085003,0.63932237,99297.0,99296.0,0.0001716]
[1735174085439,0.63632237,99297.0,99296.0,0.0001716]
[1735174085658,0.72594765,99297.0,99296.0,0.0001716]
[1735174085863,0.72394765,99297.0,99296.0,0.0001716]
[1735174086103,0.73094765,99297.0,99296.0,0.0001716]
[1735174086503,0.72394765,99297.0,99296.0,0.0001716]
[1735174086704,0.72894765,99297.0,99296.0,0.0001716]
[1735174086959,0.72394765,99297.0,99296.0,0.0001716]
[1735174087387,0.64704765,99297.0,99296.0,0.0001716]
[1735174087756,0.54704765,99297.0,99296.0,0.0001716]
[1735174088097,0.64404765,99297.0,99296.0,0.0001716]
[1735174088324,0.55742237,99297.0,99296.0,0.0001716]
[1735174088758,0.55442237,99297.0,99296.0,0.0001716]
[1735174088966,0.54842237,99297.0,99296.0,0.0001716]
[1735174089173,0.55642237,99297.0,99296.0,0.0001716]
[1735174089562,0.54842237,99297.0,99296.0,0.0001716]
[1735174089776,0.55442237,99297.0,99296.0,0.0001716]
[1735174089997,0.55742237,99297.0,99296.0,0.0001716]
[1735174090475,0.56342237,99297.0,99296.0,0.0001716]
[1735174090755,0.65540869,99297.0,99296.0,0.0001716]
[1735174091016,0.73200869,99297.0,99296.0,0.0001716]
[1735174091267,0.87780869,99297.0,99296.0,0.0001716]
[1735174091493,0.88080869,99297.0,99296.0,0.0001716]
[1735174091702,0.91188732,99297.0,99296.0,0.0001716]
[1735174091903,0.91488732,99297.0,99296.0,0.0001716]
[1735174092228,0.90888732,99297.0,99296.0,0.0001716]
[1735174092505,0.90888732,99297.0,99289.0,0.0001716]
[1735174092506,0.2,99290.0,99289.0,0.00016906]
[1735174092728,0.63938979,99290.0,99289.0,0.00016906]
[1735174092897,0.63813032,99290.0,99289.0,0.00016906]
[1735174093726,0.64713032,99290.0,99289.0,0.00016906]
[1735174094458,0.97776563,99290.0,99289.0,0.00016906]
[1735174094700,1.08575193,99290.0,99289.0,0.00016906]
[1735174095606,0.75511662,99290.0,99289.0,0.00016906]
[1735174096254,0.78612018,99290.0,99289.0,0.00016906]
[1735174096453,0.80631018,99290.0,99289.0,0.00016906]
[1735174096665,0.78612018,99290.0,99289.0,0.00016906]
[1735174097210,0.75511662,99290.0,99289.0,0.00016906]
[1735174097407,1.35461216,99290.0,99289.0,0.00016906]
[1735174097681,0.5101,99289.0,99288.0,4.2e-07]
[1735174097894,0.74908788,99289.0,99288.0,4.2e-07]
[1735174098820,0.85928788,99289.0,99288.0,4.2e-07]
[1735174099028,1.18876035,99289.0,99288.0,4.2e-07]
[1735174099235,1.19676035,99289.0,99288.0,4.2e-07]
[1735174099644,0.434194,99259.0,99258.0,0.0001714]
[1735174099850,0.53818032,99259.0,99258.0,0.0001714]
[1735174100980,0.53827437,99259.0,99258.0,0.0001714]
[1735174101486,0.53927437,99259.0,99258.0,0.0001714]
[1735174102004,0.54327437,99259.0,99258.0,0.0001714]
[1735174102321,0.54820654,99259.0,99258.0,0.0001714]
[1735174102369,0.55120654,99259.0,99258.0,0.0001714]
[1735174102629,0.54820654,99259.0,99258.0,0.0001714]
[1735174102830,0.55120654,99259.0,99258.0,0.0001714]
[1735174103259,0.54820654,99259.0,99258.0,0.0001714]
[1735174103462,0.63856479,99259.0,99258.0,0.0001714]
[1735174103708,0.55120654,99259.0,99258.0,0.0001714]
[1735174103975,0.42920654,99259.0,99258.0,0.0001714]
[1735174104596,0.42820654,99259.0,99258.0,0.0001714]
[1735174104824,0.42620654,99259.0,99258.0,0.0001714]
[1735174105017,0.43020654,99259.0,99258.0,0.0001714]
[1735174105231,0.44820654,99259.0,99258.0,0.0001714]
[1735174106236,0.44920654,99259.0,99258.0,0.0001714]
[1735174106436,0.44820654,99259.0,99258.0,0.0001714]
[1735174106688,0.54820654,99259.0,99258.0,0.0001714]
[1735174107536,0.63626479,99259.0,99258.0,0.0001714]
[1735174107750,0.54920654,99259.0,99258.0,0.0001714]
[1735174107948,0.55320654,99259.0,99258.0,0.0001714]
[1735174108201,0.55220654,99259.0,99258.0,0.0001714]
[1735174108440,0.76450654,99259.0,99258.0,4e-07]
[1735174108741,0.89548393,99259.0,99258.0,4e-07]
[1735174109143,0.97688393,99259.0,99258.0,4e-07]
[1735174109345,1.30186487,99259.0,99258.0,4e-07]
[1735174109546,0.2,99250.0,99249.0,0.0001318]
[1735174109727,0.67044635,99250.0,99249.0,0.0001318]
[1735174109967,0.66918639,99250.0,99249.0,0.0001318]
[1735174110527,0.74498152,99250.0,99249.0,0.0001318]
[1735174110926,0.74798152,99250.0,99249.0,0.0001318]
[1735174111330,0.80848152,99250.0,99249.0,0.0001318]
[1735174111732,0.90459182,99250.0,99249.0,0.0001318]
[1735174112058,0.90459182,99250.0,99224.0,0.00671555]
[1735174112059,0.411238,99232.0,99224.0,0.00671555]
[1735174112267,0.53822432,99232.0,99224.0,0.00671555]
[1735174112837,0.56983373,99232.0,99224.0,0.00671555]
[1735174113052,0.53822432,99232.0,99224.0,0.00671555]
[1735174113252,0.56924594,99232.0,99224.0,0.00671555]
[1735174113463,0.53822432,99232.0,99224.0,0.00671555]
[1735174113892,0.54022432,99232.0,99224.0,0.00671555]
[1735174114322,0.53822432,99232.0,99224.0,0.00671555]
[1735174114566,0.54835333,99232.0,99224.0,0.00671555]
[1735174114773,0.55035333,99232.0,99224.0,0.00671555]
[1735174114919,0.55435333,99232.0,99224.0,0.00671555]
[1735174115144,0.65833965,99232.0,99224.0,0.00671555]
[1735174115360,0.65433965,99232.0,99224.0,0.00671555]
[1735174115717,0.65833965,99232.0,99224.0,0.00671555]
[1735174116077,0.55435333,99232.0,99224.0,0.00671555]
[1735174116272,0.55035333,99232.0,99224.0,0.00671555]
[1735174116675,0.54835333,99232.0,99224.0,0.00671555]
[1735174116909,0.54935333,99232.0,99224.0,0.00671555]
[1735174117335,0.54835333,99232.0,99224.0,0.00671555]
[1735174117552,0.65233965,99232.0,99224.0,0.00671555]
[1735174117807,0.65833965,99232.0,99224.0,0.00671555]
[1735174118015,0.65433965,99232.0,99224.0,0.00671555]
[1735174118237,0.65933965,99232.0,99224.0,0.00671555]
[1735174118448,0.65933965,99232.0,99212.0,0.0817857]
[1735174118876,0.65933965,99232.0,99212.0,8.57e-05]
[1735174118877,0.85081852,99232.0,99212.0,8.57e-05]
[1735174119056,0.411261,99218.0,99212.0,8.57e-05]
[1735174119255,0.60549862,99218.0,99212.0,8.57e-05]
[1735174119482,0.79696021,99218.0,99212.0,8.57e-05]
[1735174119766,0.87866021,99218.0,99212.0,8.57e-05]
[1735174119937,0.4335,99217.0,99216.0,6.681e-05]
[1735174120161,0.50794791,99217.0,99216.0,6.681e-05]
[1735174120370,0.61193423,99217.0,99216.0,0.00058742]
[1735174121504,0.534269,99213.0,99212.0,8.57e-05]
[1735174121689,0.63825532,99213.0,99212.0,8.57e-05]
[1735174122449,0.1,99198.0,99196.0,0.0001716]
[1735174122677,0.53827932,99198.0,99196.0,0.0001716]
[1735174123769,0.54823115,99198.0,99196.0,0.0001716]
[1735174124176,0.55223115,99198.0,99196.0,0.0001716]
[1735174124579,0.55123115,99198.0,99196.0,0.0001716]
[1735174124783,0.55923115,99198.0,99196.0,0.0001716]
[1735174126198,0.65017606,99198.0,99196.0,0.0001716]
[1735174126395,0.55923115,99198.0,99196.0,0.0001716]
[1735174128044,0.55923115,99198.0,99171.0,0.0002]
[1735174128045,0.534303,99192.0,99171.0,0.0002]
[1735174128253,0.63828932,99192.0,99171.0,0.0002]
[1735174129534,0.434335,99172.0,99171.0,0.0002]
[1735174129738,0.53832132,99172.0,99171.0,0.0002]
[1735174130744,0.53838397,99172.0,99171.0,0.0002]
[1735174131118,0.54538397,99172.0,99171.0,0.0002]
[1735174132807,0.57271864,99172.0,99171.0,0.0002]
[1735174133958,0.55528572,99172.0,99171.0,0.0002]
[1735174134867,0.161357,99159.0,99156.0,0.0799]
[1735174135067,0.28834332,99159.0,99156.0,0.0799]
[1735174135467,0.43834332,99159.0,99156.0,0.0799]
[1735174136342,0.10398632,99159.0,99156.0,0.0799]
[1735174136567,0.10398632,99159.0,99158.0,0.0800714]
[1735174136779,6.265e-05,99172.0,99168.0,0.16134]
[1735174136968,6.265e-05,99172.0,99158.0,0.2095294]
[1735174136969,0.10398632,99171.0,99169.0,0.0799]
[1735174137189,0.10398632,99171.0,99170.0,0.161339]
[1735174137329,0.10398632,99171.0,99170.0,0.16615835]
[1735174137543,0.10398632,99171.0,99170.0,0.29625835]
[1735174138350,0.10498632,99171.0,99170.0,0.13491935]
[1735174138952,0.10498632,99171.0,99170.0,0.29625835]
[1735174139364,0.10398632,99171.0,99170.0,0.29625835]
[1735174140439,6.265e-05,99172.0,99171.0,0.0819]
[1735174140791,6.265e-05,99172.0,99171.0,0.08668505]
[1735174141849,0.00126037,99187.0,99171.0,0.13488505]
[1735174142057,0.161255,99222.0,99197.0,0.291395]
[1735174142269,0.16253112,99212.0,99197.0,0.291395]
[1735174142478,0.16253112,99212.0,99197.0,0.296117]
[1735174142692,0.00126012,99212.0,99197.0,0.296117]
[1735174143315,0.15126005,99213.0,99197.0,0.296117]
[1735174144127,0.00126005,99213.0,99197.0,0.296117]
[1735174151496,0.161271,99212.0,99197.0,0.296117]
[1735174151722,0.00126005,99211.0,99197.0,0.296117]
[1735174153189,0.00126005,99210.0,99197.0,0.296117]
[1735174154280,0.00126005,99209.0,99197.0,0.296117]
[1735174154488,0.00126005,99213.0,99197.0,0.296117]
[1735174154689,0.00126005,99213.0,99197.0,0.004722]
[1735174154690,0.10415812,99198.0,99197.0,0.004722]
[1735174155241,0.10415812,99198.0,99189.0,0.161308]
[1735174155521,0.10524651,99197.0,99189.0,0.161308]
[1735174156022,0.10524651,99197.0,99188.0,0.08]
[1735174156276,0.161305,99191.0,99188.0,0.08]
[1735174156528,0.161305,99191.0,99175.0,0.08]
[1735174156529,0.161329,99176.0,99175.0,0.08]
[1735174156776,0.26531532,99176.0,99170.0,8.59e-05]
[1735174157033,0.10524683,99175.0,99170.0,8.59e-05]
[1735174157558,0.161332,99174.0,99170.0,8.59e-05]
[1735174157771,0.10524683,99173.0,99170.0,8.59e-05]
[1735174158631,0.161335,99172.0,99170.0,8.59e-05]
[1735174158884,0.26658185,99172.0,99170.0,8.59e-05]
[1735174159182,0.10398632,99172.0,99170.0,8.59e-05]
[1735174159382,0.10524685,99172.0,99170.0,8.59e-05]
[1735174159800,0.08892799,99193.0,99172.0,0.0489]
[1735174160022,0.10398632,99192.0,99186.0,0.161312]
[1735174160228,0.10524656,99192.0,99186.0,0.161312]
[1735174160435,0.10524656,99192.0,99187.0,0.16596158]
[1735174160646,0.10398632,99192.0,99187.0,0.32727258]
[1735174160849,0.27934438,99209.0,99197.0,0.161295]
[1735174160850,0.0001718,99198.0,99197.0,0.161295]
[1735174161063,0.10415812,99198.0,99197.0,0.161295]
[1735174161286,0.10415812,99198.0,99194.0,0.161299]
[1735174161515,0.0001718,99198.0,99197.0,0.00464339]
[1735174161723,0.0001718,99198.0,99189.0,0.161308]
[1735174161929,0.0001718,99198.0,99197.0,0.00464339]
[1735174162130,0.0001718,99198.0,99189.0,0.161308]
[1735174162338,0.0001718,99198.0,99197.0,0.00464339]
[1735174162549,0.0001718,99198.0,99189.0,0.161308]
[1735174162759,0.0001718,99198.0,99197.0,0.00464339]
[1735174162966,0.0001718,99198.0,99189.0,0.163308]
[1735174163220,0.0001718,99198.0,99189.0,0.161308]
[1735174163431,0.0001718,99198.0,99190.0,0.00464842]
[1735174163432,0.0041718,99198.0,99190.0,0.00464842]
[1735174163654,0.0041718,99198.0,99191.0,0.161304]
[1735174163862,0.42783748,99197.0,99178.0,0.0794]
[1735174164076,0.161308,99189.0,99178.0,0.0794]
[1735174164301,0.1052467,99188.0,99179.0,0.161324]
[1735174165092,0.1052467,99188.0,99178.0,0.0794]
[1735174166072,0.1052467,99188.0,99179.0,0.003]
[1735174166473,0.1052467,99188.0,99179.0,0.001]
[1735174166672,0.1052467,99188.0,99178.0,0.0814]
[1735174166897,0.1052467,99188.0,99178.0,0.0794]
[1735174167196,0.1052467,99188.0,99178.0,0.0804]
[1735174167368,0.1052467,99188.0,99179.0,0.002]
[1735174167574,0.10398632,99188.0,99179.0,0.002]
[1735174167975,0.00126026,99187.0,99180.0,0.161322]
[1735174168246,0.10524667,99186.0,99180.0,0.161322]
[1735174169425,0.10524667,99186.0,99180.0,0.163322]
[1735174170504,0.10524667,99186.0,99180.0,0.002]
[1735174171614,0.10524667,99186.0,99180.0,0.003]
[1735174172419,0.10524667,99186.0,99180.0,0.002]
[1735174172628,0.10524667,99186.0,99174.0,0.161331]
[1735174172860,0.10524667,99186.0,99180.0,0.001]
[1735174173073,0.10524667,99186.0,99180.0,0.003]
[1735174173288,0.322629,99185.0,99180.0,0.003]
[1735174173495,0.161317,99183.0,99180.0,0.002]
[1735174173701,0.10524673,99182.0,99180.0,0.002]
[1735174174786,0.161329,99177.0,99174.0,0.001]
[1735174175028,0.161321,99181.0,99172.0,8.59e-05]
[1735174175029,0.10524686,99176.0,99172.0,8.59e-05]
[1735174175944,0.16133,99175.0,99172.0,8.59e-05]
[1735174176136,0.10524687,99174.0,99172.0,0.0020859]
[1735174176409,0.10524687,99174.0,99172.0,8.59e-05]
[1735174177841,0.10524687,99174.0,99173.0,0.00468834]
[1735174178348,0.184334,99173.0,99172.0,8.59e-05]
[1735174178562,0.43832032,99173.0,99172.0,0.0020859]
[1735174178809,0.43832032,99173.0,99172.0,8.59e-05]
[1735174179459,0.44032032,99173.0,99172.0,8.59e-05]
[1735174179756,0.43832032,99173.0,99172.0,8.59e-05]
[1735174179957,0.43932032,99173.0,99172.0,8.59e-05]